bitfinex-derivatives/quotes_SOLF0:USTF0_20260211
["timestamp","ask_amount","ask_price","bid_price","bid_amount"]
[1770837839764,11.63422487,79.934,79.868,11.8965874]
[1770837840366,11.2703,79.908,79.868,11.8965874]
[1770837841065,11.2703,79.908,79.862,11.2766]
[1770837841563,11.2703,79.908,79.853,11.8965874]
[1770837841564,10.73417593,79.92,79.866,11.8965874]
[1770837841764,10.73417593,79.94,79.866,11.8965874]
[1770837841961,22.3684008,79.94,79.866,11.8965874]
[1770837842172,11.63422487,79.939,79.866,11.8965874]
[1770837842370,11.63422487,79.939,79.868,11.8965874]
[1770837842570,11.63422487,79.939,79.884,11.8965874]
[1770837843673,11.2669,79.932,79.884,11.8965874]
[1770837845067,11.2679,79.925,79.884,11.8965874]
[1770837845769,11.2669,79.932,79.884,11.8965874]
[1770837846875,11.2669,79.932,79.886,11.2732]
[1770837847177,11.2669,79.932,79.887,11.8965874]
[1770837847564,11.2682,79.923,79.887,11.8965874]
[1770837847761,11.2682,79.923,79.874,11.8965874]
[1770837848466,11.2682,79.923,79.878,11.8965874]
[1770837850369,11.2692,79.916,79.878,11.8965874]
[1770837853578,11.2682,79.923,79.88,11.8965874]
[1770837854377,11.269,79.917,79.88,11.8965874]
[1770837855277,11.2681,79.924,79.88,11.8965874]
[1770837857474,11.2681,79.924,79.884,11.8965874]
[1770837858276,11.2667,79.934,79.893,11.2723]
[1770837858482,11.2667,79.934,79.894,11.8965874]
[1770837858980,11.63422487,79.959,79.896,11.8965874]
[1770837859283,11.63422487,79.959,79.898,11.8965874]
[1770837859783,11.63422487,79.973,79.917,11.8965874]
[1770837860078,11.63422487,80.003,79.919,11.8965874]
[1770837860275,11.63422487,80.003,79.953,11.8965874]
[1770837860875,11.2579,79.996,79.953,11.8965874]
[1770837861477,11.63422487,80.003,79.954,23.49903664]
[1770837861676,11.63422487,80.003,79.955,12.23533664]
[1770837863884,11.2579,79.996,79.955,12.23533664]
[1770837864078,12.05660358,79.996,79.955,12.23533664]
[1770837864780,12.05660358,79.988,79.911,12.23533664]
[1770837864979,12.05660358,79.988,79.913,12.23533664]
[1770837865782,12.05660358,79.976,79.913,12.23533664]
[1770837866084,12.05660358,79.976,79.915,12.23533664]
[1770837867379,12.05660358,79.976,79.917,11.97484653]
[1770837867786,11.2618,79.968,79.923,11.97484653]
[1770837868685,23.31730358,79.976,79.925,11.97484653]
[1770837869279,12.05660358,79.976,79.925,11.97484653]
[1770837870987,11.2617,79.969,79.927,11.97484653]
[1770837871188,22.84486079,79.969,79.927,11.97484653]
[1770837875894,22.84486079,79.969,79.916,155.62]
[1770837875895,11.58316079,79.96,79.916,155.62]
[1770837876196,11.58316079,79.96,79.913,11.97484653]
[1770837876399,11.58316079,79.96,79.914,11.97484653]
[1770837876786,11.2632,79.959,79.921,11.2683]
[1770837876987,11.58316079,79.96,79.921,11.2683]
[1770837879196,11.58316079,79.959,79.914,11.2693]
[1770837879400,11.58316079,79.959,79.911,157.7]
[1770837879998,11.2649,79.946,79.911,157.7]
[1770837880392,22.84806079,79.946,79.911,157.7]
[1770837882806,11.58316079,79.946,79.912,11.2696]
[1770837884101,11.264,79.952,79.912,11.2696]
[1770837885404,11.58316079,79.973,79.922,11.97484653]
[1770837885607,11.58316079,79.973,79.912,11.97484653]
[1770837886508,11.264,79.953,79.915,11.2692]
[1770837886710,11.58316079,79.96,79.915,159.44]
[1770837886908,11.58316079,79.96,79.915,159.5]
[1770837888808,11.2638,79.954,79.915,159.5]
[1770837889208,11.58316079,79.974,79.919,11.97484653]
[1770837889410,11.58316079,79.974,79.921,11.97484653]
[1770837890210,11.58316079,79.974,79.915,11.2692]
[1770837890211,11.58316079,79.974,79.922,160.28]
[1770837891706,11.2636,79.955,79.922,160.28]
[1770837892706,11.2649,79.946,79.922,160.28]
[1770837894706,11.69307679,79.946,79.895,11.272]
[1770837894906,4.00913422,79.94,79.897,11.42790288]
[1770837895414,4.00913422,79.94,79.898,161.48]
[1770837895810,11.2664,79.935,79.898,161.48]
[1770837896008,4.00913422,79.93,79.898,161.48]
[1770837896208,4.00913422,79.93,79.891,161.68]
[1770837896413,4.00913422,79.92,79.891,161.68]
[1770837897211,11.2695,79.913,79.891,161.68]
[1770837898017,11.2704,79.907,79.891,142.7117]
[1770837898409,4.00913422,79.92,79.891,142.7117]
[1770837899217,4.00913422,79.93,79.892,11.42790288]
[1770837899414,4.00913422,79.94,79.892,11.42790288]
[1770837899717,11.2678,79.925,79.892,11.42790288]
[1770837899916,11.2678,79.925,79.894,11.42790288]
[1770837902019,11.2678,79.925,79.896,11.42790288]
[1770837902218,11.69307679,79.949,79.895,163.02]
[1770837902219,11.2669,79.932,79.897,11.42790288]
[1770837902414,4.00913422,79.95,79.901,11.42790288]
[1770837902606,4.00913422,79.96,79.903,11.42790288]
[1770837903422,11.2665,79.935,79.903,11.42790288]
[1770837903617,11.64894861,79.974,79.903,11.42790288]
[1770837903618,4.00913422,79.94,79.903,11.42790288]
[1770837903922,4.00913422,79.93,79.896,163.5]
[1770837904213,4.00913422,79.93,79.88,4.00913422]
[1770837904214,11.2696,79.913,79.874,11.42790288]
[1770837904414,11.2696,79.913,79.875,163.66]
[1770837904919,11.2715,79.899,79.875,163.66]
[1770837905714,11.2706,79.906,79.875,163.66]
[1770837906115,11.69307679,79.899,79.875,144.6456]
[1770837906316,4.00913422,79.89,79.857,164.08]
[1770837906615,11.2713,79.901,79.858,11.42790288]
[1770837907018,11.69307679,79.914,79.857,164.08]
[1770837907320,11.69307679,79.914,79.857,164.32]
[1770837907522,11.69307679,79.93,79.858,11.42790288]
[1770837907824,11.69307679,79.93,79.86,11.42790288]
[1770837908126,11.2695,79.914,79.874,11.42790288]
[1770837909212,11.69307679,79.93,79.876,11.42790288]
[1770837909812,11.2693,79.915,79.876,11.42790288]
[1770837911218,11.69307679,79.908,79.862,11.42790288]
[1770837912720,11.69307679,79.895,79.857,164.52]
[1770837912924,11.69307679,79.895,79.849,164.78]
[1770837913722,11.2729,79.89,79.849,164.78]
[1770837913922,11.69307679,79.895,79.849,164.78]
[1770837914128,11.69307679,79.895,79.755,175.6512]
[1770837914129,11.69307679,79.889,79.828,165.12]
[1770837914328,11.69307679,79.889,79.828,165.16]
[1770837915230,11.69307679,79.889,79.775,37.66]
[1770837915231,11.69307679,79.869,79.801,11.42790288]
[1770837916823,11.69307679,79.854,79.802,11.42790288]
[1770837917231,11.2781,79.852,79.802,11.42790288]
[1770837917640,11.69307679,79.849,79.787,11.42790288]
[1770837919344,11.2801,79.839,79.787,11.42790288]
[1770837919733,10.75332412,79.87,79.805,11.42790288]
[1770837920739,11.2782,79.852,79.808,11.19589118]
[1770837923224,11.95917529,79.869,79.81,11.19589118]
[1770837924234,11.95917529,79.844,79.793,11.19589118]
[1770837924831,11.95917529,79.844,79.8,11.2854]
[1770837925034,11.95917529,79.844,79.801,11.19589118]
[1770837925337,11.95917529,79.858,79.801,11.19589118]
[1770837925532,11.2785,79.85,79.809,11.2841]
[1770837925839,11.2785,79.85,79.81,11.19589118]
[1770837926539,11.2772,79.859,79.813,11.19589118]
[1770837927941,11.2782,79.852,79.813,11.19589118]
[1770837928828,11.95917529,79.869,79.816,11.46868666]
[1770837929030,11.41100032,79.889,79.816,11.46868666]
[1770837929234,11.41100032,79.889,79.81,10.75332412]
[1770837929235,11.41100032,79.909,79.831,11.46868666]
[1770837929441,11.41100032,79.909,79.833,11.46868666]
[1770837929735,99.94,79.949,79.81,10.75332412]
[1770837929736,11.41100032,79.925,79.863,11.46868666]
[1770837930841,11.2687,79.919,79.875,11.2748]
[1770837931341,11.41100032,79.925,79.868,11.46868666]
[1770837932739,11.2696,79.913,79.869,11.2757]
[1770837933238,11.2696,79.913,79.87,11.46868666]
[1770837933833,11.41100032,79.941,79.879,11.46868666]
[1770837934832,11.2664,79.935,79.893,11.2723]
[1770837935439,11.2664,79.935,79.884,22.74228666]
[1770837935631,11.267,79.931,79.885,11.46868666]
[1770837935849,11.41100032,79.93,79.865,11.46868666]
[1770837937940,11.2691,79.917,79.867,22.74458666]
[1770837938635,11.2691,79.917,79.868,11.46868666]
[1770837938835,10.75332412,79.94,79.868,11.46868666]
[1770837938836,11.41100032,79.916,79.87,11.2755]
[1770837939139,11.41100032,79.939,79.871,11.46868666]
[1770837940142,11.41100032,79.929,79.867,11.46868666]
[1770837941331,11.2697,79.912,79.868,11.2758]
[1770837942039,11.2697,79.912,79.867,11.46868666]
[1770837942730,11.41100032,79.908,79.853,11.46868666]
[1770837942934,11.41100032,79.908,79.831,11.46868666]
[1770837943332,11.41100032,79.908,79.83,10.75332412]
[1770837943333,11.41100032,79.908,79.845,11.46868666]
[1770837944440,11.41100032,79.908,79.847,11.2788]
[1770837944829,11.41100032,79.908,79.848,11.46868666]
[1770837945242,11.2724,79.893,79.849,11.2785]
[1770837945430,11.2724,79.893,79.849,22.74718666]
[1770837945630,11.2724,79.893,79.85,11.46868666]
[1770837946743,11.2724,79.893,79.851,11.2781]
[1770837947539,11.2724,79.893,79.852,11.46868666]
[1770837947733,11.271,79.903,79.86,11.46868666]
[1770837949842,11.271,79.903,79.86,22.74558666]
[1770837952044,12.39689508,79.924,79.872,11.96455285]
[1770837953040,12.39689508,79.912,79.871,11.2753]
[1770837954838,11.2701,79.909,79.871,11.2753]
[1770837956645,12.39689508,79.912,79.877,11.2745]
[1770837956846,12.39689508,79.929,79.878,11.96455285]
[1770837957348,12.39689508,79.944,79.885,11.96455285]
[1770837957951,12.39689508,79.944,79.893,11.2723]
[1770837958750,11.2665,79.935,79.893,11.2723]
[1770837959251,11.2652,79.944,79.885,11.96455285]
[1770837959649,12.39689508,79.957,79.897,11.2718]
[1770837960764,11.2661,79.938,79.897,11.2718]
[1770837961644,11.2661,79.938,79.898,11.96455285]
[1770837962446,12.39689508,79.939,79.869,11.96455285]
[1770837962648,12.39689508,79.919,79.831,11.96455285]
[1770837962843,12.39689508,79.919,79.833,11.96455285]
[1770837963351,10.75332412,79.92,79.845,11.96455285]
[1770837963352,12.39689508,79.9,79.845,11.96455285]
[1770837964146,12.39689508,79.9,79.852,11.2781]
[1770837964450,12.39689508,79.9,79.853,11.96455285]
[1770837964847,11.2709,79.904,79.862,11.96455285]
[1770837965045,99.88,79.951,79.862,11.96455285]
[1770837965046,12.39689508,79.929,79.862,11.96455285]
[1770837966137,11.2694,79.914,79.871,11.96455285]
[1770837966543,10.75332412,79.95,79.871,11.96455285]
[1770837966752,12.39689508,79.96,79.905,11.96455285]
[1770837967446,11.2635,79.956,79.909,11.96455285]
[1770837968449,11.2644,79.95,79.909,11.96455285]
[1770837970756,10.75332412,79.97,79.886,102.6]
[1770837970757,11.2658,79.94,79.897,11.2717]
[1770837971052,11.2658,79.94,79.898,11.96455285]
[1770837971449,11.2667,79.933,79.898,11.96455285]
[1770837972250,11.2658,79.94,79.898,11.96455285]
[1770837973155,12.39689508,79.939,79.898,11.96455285]
[1770837973359,12.39689508,79.926,79.878,11.96455285]
[1770837974047,12.39689508,79.924,79.864,11.96455285]
[1770837974641,11.2704,79.907,79.87,11.2755]
[1770837974850,12.39689508,79.919,79.864,11.96455285]
[1770837975351,12.39689508,79.919,79.833,22.5614]
[1770837975352,12.39689508,79.9,79.858,11.2772]
[1770837976847,11.2715,79.899,79.858,11.2772]
[1770837979057,11.2704,79.907,79.865,11.96455285]
[1770837979756,11.2714,79.9,79.865,11.96455285]
[1770837981760,11.27,79.91,79.869,12.40808882]
[1770837982359,11.27,79.91,79.87,11.2755]
[1770837982559,11.27,79.91,79.84,10.73867001]
[1770837982560,11.27,79.91,79.871,12.40808882]
[1770837982754,11.271,79.903,79.871,12.40808882]
[1770837983060,12.39689508,79.915,79.871,12.40808882]
[1770837983759,12.39689508,79.915,79.846,135.7]
[1770837983950,10.73867001,79.92,79.807,12.40808882]
[1770837983951,11.2179553,79.899,79.807,12.40808882]
[1770837984146,11.2179553,79.899,79.8,10.73867001]
[1770837984147,11.2758,79.869,79.824,12.40808882]
[1770837984356,11.2179553,79.879,79.824,12.40808882]
[1770837984554,11.2179553,79.859,79.808,12.40808882]
[1770837985062,11.2789,79.847,79.808,12.40808882]
[1770837985262,11.2179553,79.839,79.776,12.40808882]
[1770837985464,11.2179553,79.854,79.785,12.40808882]
[1770837986959,11.2794,79.843,79.792,11.2865]
[1770837987262,11.2179553,79.854,79.793,12.29387024]
[1770837987566,22.82907291,79.844,79.796,11.286]
[1770837988463,11.2804,79.837,79.793,12.29387024]
[1770837988662,11.54967291,79.844,79.793,12.29387024]
[1770837988862,11.54967291,79.844,79.801,11.2853]
[1770837990764,11.54967291,79.844,79.802,12.29387024]
[1770837990966,10.73867001,79.86,79.802,12.29387024]
[1770837991173,11.2775,79.857,79.81,12.29387024]
[1770837991370,11.54967291,79.857,79.81,12.29387024]
[1770837992166,11.54967291,79.849,79.799,11.2855]
[1770837993166,99.92,79.889,79.789,11.287]
[1770837993167,11.54967291,79.835,79.789,11.287]
[1770837993468,11.54967291,79.835,79.79,12.29387024]
[1770837994268,11.54967291,79.85,79.801,12.29387024]
[1770837994667,11.54967291,79.864,79.801,12.29387024]
[1770837995274,11.54967291,79.842,79.781,12.29387024]
[1770837995474,11.54967291,79.842,79.764,479.36780481]
[1770837995475,11.54967291,79.842,79.78,144.6]
[1770837995677,11.54967291,79.829,79.766,12.29387024]
[1770837996582,11.54967291,79.829,79.781,11.288]
[1770837997071,11.2802,79.838,79.79,12.29387024]
[1770837997670,22.83037291,79.834,79.79,12.29387024]
[1770837999288,11.2814,79.829,79.775,12.29387024]
[1770837999783,11.2814,79.829,79.773,162.28]
[1770837999784,11.54967291,79.819,79.773,162.28]
[1770837999971,11.54967291,79.819,79.775,11.2889]
[1770838001383,11.2813,79.83,79.782,12.29387024]
[1770838002081,11.2821,79.824,79.782,12.29387024]
[1770838003485,11.283,79.818,79.782,12.29387024]
[1770838004872,11.282,79.825,79.782,12.29387024]
[1770838006584,11.282,79.825,79.783,11.2879]
[1770838008383,11.54967291,79.849,79.794,12.29387024]
[1770838008788,11.281,79.832,79.794,12.29387024]
[1770838008983,11.281,79.832,79.773,162.28]
[1770838008984,22.83067291,79.832,79.774,12.29387024]
[1770838009381,22.83067291,79.832,79.776,12.29387024]
[1770838009792,22.83067291,79.832,79.789,11.2869]
[1770838011985,22.83067291,79.832,79.795,11.2862]
[1770838013384,11.91256434,79.849,79.808,11.2842]
[1770838013582,11.91256434,79.849,79.79,11.71580683]
[1770838014189,11.91256434,79.849,79.808,11.2843]
[1770838015696,11.2795,79.843,79.805,11.71580683]
[1770838018889,11.91256434,79.862,79.805,11.71580683]
[1770838019093,11.91256434,79.879,79.807,11.71580683]
[1770838019899,11.91256434,79.861,79.804,11.71580683]
[1770838020092,11.91256434,79.861,79.806,11.71580683]
[1770838020291,11.2771,79.86,79.82,11.2826]
[1770838020795,23.18966434,79.86,79.82,11.2826]
[1770838021001,11.91256434,79.852,79.806,11.71580683]
[1770838021198,11.91256434,79.852,79.805,164.66]
[1770838022592,11.91256434,79.865,79.806,11.71580683]
[1770838023698,11.2767,79.863,79.806,11.71580683]
[1770838023998,11.2767,79.863,79.805,164.66]
[1770838023999,22.65123435,79.88,79.825,11.71580683]
[1770838024400,11.91256434,79.894,79.838,11.71580683]
[1770838024585,11.91256434,79.894,79.84,11.71580683]
[1770838024789,11.91256434,79.894,79.842,11.71580683]
[1770838025000,11.91256434,79.919,79.856,11.71580683]
[1770838025193,11.91256434,79.919,79.858,11.71580683]
[1770838025697,11.91256434,79.893,79.843,99.98]
[1770838026299,11.91256434,79.893,79.842,11.71580683]
[1770838026693,11.2728,79.89,79.845,11.279]
[1770838026991,23.18536434,79.89,79.842,11.71580683]
[1770838027194,11.91256434,79.89,79.842,11.71580683]
[1770838027389,23.18536434,79.89,79.851,11.2782]
[1770838027699,11.91256434,79.89,79.837,132.92]
[1770838028197,11.91256434,79.89,79.846,11.2789]
[1770838028601,11.91256434,79.89,79.837,144.63580683]
[1770838029700,11.2742,79.88,79.839,11.2799]
[1770838029902,11.2742,79.88,79.822,11.71580683]
[1770838029903,11.91256434,79.879,79.822,11.71580683]
[1770838030298,11.2771,79.86,79.821,165.92]
[1770838032406,11.91256434,79.863,79.822,11.2823]
[1770838032807,11.91256434,79.863,79.821,165.92]
[1770838032808,11.2761,79.867,79.828,11.2814]
[1770838033400,11.2748,79.876,79.822,11.71580683]
[1770838034509,11.2734,79.886,79.842,11.71580683]
[1770838034709,11.2734,79.886,79.823,167.04]
[1770838034710,11.91256434,79.885,79.833,167.04]
[1770838035709,11.2747,79.876,79.833,167.04]
[1770838036011,11.91256434,79.875,79.833,167.04]
[1770838036208,11.91256434,79.875,79.826,11.71580683]
[1770838036209,11.91256434,79.869,79.81,11.71580683]
[1770838036513,11.91256434,79.858,79.809,167.4]
[1770838036807,11.91256434,79.849,79.798,11.71580683]
[1770838037199,11.2801,79.838,79.797,11.2858]
[1770838037403,11.91256434,79.829,79.748,11.71580683]
[1770838037607,11.91256434,79.829,79.75,11.71580683]
[1770838038010,11.2821,79.824,79.774,11.71580683]
[1770838038613,11.91256434,79.829,79.788,11.2871]
[1770838039003,11.91256434,79.829,79.774,11.71580683]
[1770838039711,11.2815,79.828,79.781,23.00390683]
[1770838039910,11.2815,79.828,79.782,11.71580683]
[1770838041013,11.2797,79.842,79.786,11.5336421]
[1770838041515,12.30698867,79.842,79.786,11.5336421]
[1770838042611,11.2823,79.823,79.786,11.5336421]
[1770838043817,11.2806,79.835,79.79,11.2869]
[1770838044118,11.2806,79.835,79.791,11.5336421]
[1770838044315,23.58658867,79.842,79.795,11.2861]
[1770838044518,23.58658867,79.842,79.796,11.5336421]
[1770838044720,11.2796,79.842,79.796,11.5336421]
[1770838045114,10.75749657,79.85,79.76,10.75749657]
[1770838045115,11.2813,79.83,79.76,10.75749657]
[1770838045320,11.2813,79.83,79.762,11.5336421]
[1770838045720,11.2813,79.83,79.76,10.75749657]
[1770838045721,11.2813,79.83,79.764,11.5336421]
[1770838046023,11.2828,79.819,79.773,11.2893]
[1770838046516,11.2828,79.819,79.765,167.84]
[1770838046517,12.30698867,79.815,79.765,167.84]
[1770838046722,12.30698867,79.815,79.764,11.5336421]
[1770838047822,11.285,79.804,79.765,11.2904]
[1770838048017,12.30698867,79.815,79.765,11.2904]
[1770838049317,11.285,79.804,79.765,11.2904]
[1770838049820,10.75749657,79.82,79.772,12.18159369]
[1770838050426,11.2838,79.812,79.776,11.2888]
[1770838051026,11.2838,79.812,79.772,12.18159369]
[1770838051429,11.2827,79.82,79.772,12.18159369]
[1770838052633,11.65507095,79.858,79.791,12.18159369]
[1770838053634,11.2798,79.84,79.799,11.2856]
[1770838054430,11.2798,79.84,79.799,23.46719369]
[1770838055130,11.2798,79.84,79.8,12.18159369]
[1770838055331,11.65507095,79.858,79.806,12.18159369]
[1770838056821,11.65507095,79.858,79.812,23.46529369]
[1770838057022,11.65507095,79.858,79.812,12.18159369]
[1770838058737,11.2776,79.856,79.812,12.18159369]
[1770838059236,11.65507095,79.858,79.812,12.18159369]
[1770838059626,10.75749657,79.87,79.791,152.7]
[1770838059627,11.2776,79.856,79.815,12.18159369]
[1770838060731,11.65507095,79.849,79.798,12.18159369]
[1770838060936,11.65507095,79.849,79.754,22.5839]
[1770838060937,11.65507095,79.849,79.781,12.18159369]
[1770838061546,11.2808,79.834,79.797,11.2859]
[1770838061736,11.65507095,79.849,79.797,11.2859]
[1770838062740,11.2811,79.832,79.789,11.2869]
[1770838064230,11.28,79.839,79.793,23.46799369]
[1770838064938,11.2808,79.833,79.793,23.46799369]
[1770838065532,11.2808,79.833,79.794,12.18159369]
[1770838069942,11.2817,79.827,79.786,11.2874]
[1770838070343,11.65507095,79.837,79.781,12.18159369]
[1770838070545,11.65507095,79.837,79.797,22.61429816]
[1770838070546,11.2808,79.834,79.797,22.61429816]
[1770838071441,11.2815,79.828,79.79,11.2868]
[1770838072848,10.75749657,79.85,79.794,11.32839816]
[1770838072849,12.26857379,79.849,79.794,11.32839816]
[1770838073051,12.26857379,79.849,79.778,11.32839816]
[1770838073740,12.26857379,79.822,79.784,11.2877]
[1770838074749,11.2826,79.821,79.784,11.2877]
[1770838075043,4.0212316,79.82,79.784,11.2877]
[1770838075548,12.26857379,79.819,79.784,11.2877]
[1770838076249,12.26857379,79.819,79.771,168.68]
[1770838076250,4.0212316,79.81,79.775,11.289]
[1770838077750,11.2832,79.817,79.775,11.289]
[1770838077945,11.2832,79.817,79.776,11.32839816]
[1770838079752,4.0212316,79.81,79.776,11.32839816]
[1770838080240,15.3054316,79.81,79.776,11.32839816]
[1770838081047,4.0212316,79.81,79.776,11.32839816]
[1770838081448,12.26857379,79.799,79.76,11.32839816]
[1770838081644,4.0212316,79.79,79.741,11.32839816]
[1770838081846,4.0212316,79.79,79.743,11.32839816]
[1770838082242,11.62360412,79.817,79.756,11.32839816]
[1770838082448,12.26857379,79.829,79.781,11.32839816]
[1770838083750,11.2819,79.826,79.781,22.61649816]
[1770838084752,11.2819,79.826,79.782,11.32839816]
[1770838085551,11.2806,79.835,79.794,11.32839816]
[1770838086350,12.26857379,79.829,79.786,11.2873]
[1770838086551,12.26857379,79.829,79.787,11.32839816]
[1770838088651,11.2816,79.828,79.788,11.287]
[1770838088846,12.26857379,79.827,79.788,11.287]
[1770838089048,12.26857379,79.827,79.787,11.32839816]
[1770838089851,11.282,79.825,79.787,11.32839816]
[1770838090248,12.26857379,79.824,79.787,11.32839816]
[1770838092250,11.2823,79.823,79.779,11.2884]
[1770838092457,11.2823,79.823,79.781,11.2881]
[1770838092954,11.2823,79.823,79.781,22.61649816]
[1770838093151,11.2823,79.823,79.782,11.32839816]
[1770838093455,12.26857379,79.838,79.784,11.32839816]
[1770838094358,23.54877379,79.838,79.798,11.32839816]
[1770838096957,11.281,79.832,79.798,11.32839816]
[1770838099054,23.54957379,79.832,79.789,22.61539816]
[1770838099257,11.2819,79.826,79.789,22.61539816]
[1770838099459,11.2819,79.826,79.79,11.32839816]
[1770838099658,11.2819,79.826,79.791,11.2866]
[1770838099858,11.2819,79.826,79.792,11.32839816]
[1770838100954,11.2827,79.82,79.781,12.29575879]
[1770838101158,12.26857379,79.832,79.781,12.29575879]
[1770838101757,11.76736037,79.821,79.78,100.0]
[1770838102160,11.76736037,79.821,79.781,12.29575879]
[1770838103862,11.2832,79.816,79.781,23.58395879]
[1770838104064,11.76736037,79.821,79.782,12.29575879]
[1770838104664,11.76736037,79.821,79.78,100.0]
[1770838104860,4.02140025,79.82,79.78,100.0]
[1770838105063,11.2866,79.792,79.757,12.29575879]
[1770838105464,11.76736037,79.809,79.757,12.29575879]
[1770838106766,4.02140025,79.82,79.77,12.29575879]
[1770838106967,11.76736037,79.819,79.77,12.29575879]
[1770838107163,4.02140025,79.81,79.77,12.29575879]
[1770838107363,11.2846,79.807,79.772,11.67090057]
[1770838108766,11.2835,79.814,79.772,11.67090057]
[1770838109264,4.02140025,79.78,79.731,11.67090057]
[1770838109567,11.2889,79.776,79.731,11.67090057]
[1770838110663,22.5646,79.823,79.72,4.02140025]
[1770838110664,23.58305703,79.766,79.722,11.67090057]
[1770838112166,4.02140025,79.74,79.691,11.67090057]
[1770838112568,12.29265703,79.728,79.683,11.302]
[1770838112765,12.29265703,79.728,79.675,172.74]
[1770838112766,12.29265703,79.719,79.675,172.74]
[1770838112963,12.29265703,79.719,79.665,11.67090057]
[1770838113364,12.29265703,79.734,79.667,11.67090057]
[1770838113966,12.29265703,79.734,79.677,11.67090057]
[1770838114363,12.29265703,79.762,79.681,11.67090057]
[1770838114671,12.29265703,79.757,79.7,11.67090057]
[1770838115761,12.29265703,79.752,79.701,11.2995]
[1770838116865,12.29265703,79.75,79.7,11.67090057]
[1770838117065,12.29265703,79.75,79.675,11.67090057]
[1770838117066,12.29265703,79.749,79.675,11.67090057]
[1770838117668,12.29265703,79.724,79.675,11.67090057]
[1770838118873,11.2964,79.723,79.675,11.67090057]
[1770838119277,23.58905703,79.723,79.675,11.67090057]
[1770838119573,12.29265703,79.722,79.675,11.67090057]
[1770838120678,12.29265703,79.722,79.654,11.67090057]
[1770838121068,11.6405881,79.786,79.654,11.67090057]
[1770838121069,12.29265703,79.735,79.654,13.85445738]
[1770838121269,11.2953,79.731,79.683,11.67090057]
[1770838121967,12.29265703,79.724,79.683,11.67090057]
[1770838122170,12.29265703,79.724,79.655,11.67090057]
[1770838123776,11.298,79.712,79.665,11.3045]
[1770838124087,12.29265703,79.711,79.665,11.3045]
[1770838124272,12.29265703,79.711,79.655,11.67090057]
[1770838124474,23.59225703,79.701,79.656,11.3058]
[1770838124869,12.29265703,79.7,79.656,11.3058]
[1770838125473,12.29265703,79.7,79.659,11.3054]
[1770838125682,12.29265703,79.708,79.66,11.67090057]
[1770838125980,12.29265703,79.708,79.644,11.67090057]
[1770838126176,11.3019,79.684,79.644,11.67090057]
[1770838127176,11.3019,79.684,79.63,10.80047553]
[1770838127177,12.29265703,79.681,79.63,11.3094]
[1770838127780,12.29265703,79.709,79.634,11.67090057]
[1770838128978,11.3002,79.697,79.649,11.67090057]
[1770838129981,11.3013,79.689,79.649,11.67090057]
[1770838130187,12.29265703,79.688,79.637,11.67090057]
[1770838130378,12.29265703,79.701,79.637,11.67090057]
[1770838130887,11.3016,79.686,79.645,11.3074]
[1770838131074,11.98525665,79.685,79.637,11.67090057]
[1770838131784,11.3034,79.674,79.637,11.67090057]
[1770838131985,11.98525665,79.673,79.636,173.74]
[1770838132182,100.12,79.729,79.606,12.11101558]
[1770838132183,11.98525665,79.668,79.606,12.11101558]
[1770838132677,11.3067,79.651,79.606,12.11101558]
[1770838133085,11.98525665,79.668,79.606,12.11101558]
[1770838133274,11.98525665,79.645,79.59,2.18521588]
[1770838133479,11.98525665,79.645,79.588,12.11101558]
[1770838134084,11.3085,79.638,79.595,11.3144]
[1770838134579,11.98525665,79.633,79.588,12.11101558]
[1770838134886,22.78573218,79.66,79.588,12.11101558]
[1770838135078,11.3064,79.652,79.604,12.11101558]
[1770838135882,11.98525665,79.659,79.609,12.11101558]
[1770838136081,11.98525665,79.673,79.609,12.11101558]
[1770838137085,11.305,79.662,79.609,12.11101558]
[1770838137679,11.98525665,79.669,79.619,11.3111]
[1770838137984,11.98525665,79.669,79.609,12.11101558]
[1770838138385,11.98525665,79.666,79.618,11.3112]
[1770838139782,11.3047,79.665,79.618,11.3112]
[1770838139979,11.3047,79.665,79.575,22.6347]
[1770838139980,11.98525665,79.659,79.571,12.11101558]
[1770838140186,11.98525665,79.659,79.573,12.11101558]
[1770838140492,11.3069,79.649,79.6,23.42471558]
[1770838140693,11.98525665,79.659,79.601,12.11101558]
[1770838141382,11.3057,79.658,79.615,11.3116]
[1770838141581,11.98525665,79.657,79.615,11.3116]
[1770838141792,11.98525665,79.657,79.601,12.11101558]
[1770838142789,11.98525665,79.645,79.601,12.11101558]
[1770838143193,11.3079,79.643,79.601,12.11101558]